Workbook

Sheet 总表
A1: 五河县2024年公开招聘中小学教师选岗人员名单
A2: 总序号 | B2: 序号 | C2: 姓名 | D2: 性 别 | E2: 岗位代码 | F2: 报考 类别 | G2: 准考证号 | H2: 笔试合 成成绩 | I2: 专业测试 分数 | J2: 总成绩
A3: 1 | B3: 1 | C3: 吴梦琴 | D3: 女 | E3: 8010201 | F3: 高中语文 | G3: 240411431218 | H3: 92.60 | I3: 82.4 | J3: =H3/1.2*0.3+I3*0.7 -> 80.83
A4: 2 | B4: 1 | C4: 梁月 | D4: 女 | E4: 8010202 | F4: 高中地理 | G4: 240411182223 | H4: 69.60 | I4: 85.6 | J4: 77.32
A5: 3 | B5: 1 | C5: 石引 | D5: 女 | E5: 8010203 | F5: 高中生物 | G5: 240411103806 | H5: 80.20 | I5: 82.94 | J5: 78.11
A6: 4 | B6: 1 | C6: 丁庆卓 | D6: 男 | E6: 8010204 | F6: 高中体育 | G6: 240411100701 | H6: 77.20 | I6: 84.36 | J6: 78.35
A7: 5 | B7: 1 | C7: 卜洋洋 | D7: 女 | E7: 8010105 | F7: 初中语文 | G7: 240411431307 | H7: 92.70 | I7: 87.32 | J7: 84.30
A8: 6 | B8: 2 | C8: 高继梅 | D8: 女 | E8: 8010105 | F8: 初中语文 | G8: 240411431426 | H8: 93.70 | I8: 84.7 | J8: 82.72
A9: 7 | B9: 3 | C9: 王明雪 | D9: 女 | E9: 8010105 | F9: 初中语文 | G9: 240411431312 | H9: 89.70 | I9: 86.12 | J9: 82.71
A10: 8 | B10: 4 | C10: 严诗彤 | D10: 女 | E10: 8010105 | F10: 初中语文 | G10: 240411431401 | H10: 86.80 | I10: 86.04 | J10: 81.93
A11: 9 | B11: 5 | C11: 陈媛媛 | D11: 女 | E11: 8010105 | F11: 初中语文 | G11: 240411431419 | H11: 87.50 | I11: 85.78 | J11: 81.92
A12: 10 | B12: 6 | C12: 原洪伟 | D12: 女 | E12: 8010105 | F12: 初中语文 | G12: 240411431318 | H12: 88.60 | I12: 85.04 | J12: 81.68
A13: 11 | B13: 7 | C13: 刘啊影 | D13: 女 | E13: 8010105 | F13: 初中语文 | G13: 240411431516 | H13: 94.10 | I13: 83.04 | J13: 81.65
A14: 12 | B14: 8 | C14: 黄茜茜 | D14: 女 | E14: 8010105 | F14: 初中语文 | G14: 240411431528 | H14: 91.60 | I14: 83.88 | J14: 81.62
A15: 13 | B15: 9 | C15: 吴亚慧 | D15: 女 | E15: 8010105 | F15: 初中语文 | G15: 240411431509 | H15: 88.80 | I15: 84.3 | J15: 81.21
A16: 14 | B16: 14 | C16: 张宇 | D16: 女 | E16: 8010106 | F16: 初中数学 | G16: 240411452624 | H16: 91.10 | I16: 83.2 | J16: 81.02
A17: 15 | B17: 1 | C17: 蔡胜祥 | D17: 男 | E17: 8010106 | F17: 初中数学 | G17: 240411453004 | H17: 92.40 | I17: 82.12 | J17: =H17/1.2*0.3+I17*0.7 -> 80.58
A18: 16 | B18: 2 | C18: 蔡飞飞 | D18: 女 | E18: 8010106 | F18: 初中数学 | G18: 240411452710 | H18: 88.90 | I18: 81.32 | J18: =H18/1.2*0.3+I18*0.7 -> 79.15
A19: 17 | B19: 3 | C19: 韩慧敏 | D19: 女 | E19: 8010106 | F19: 初中数学 | G19: 240411453015 | H19: 89.80 | I19: 80.98 | J19: =H19/1.2*0.3+I19*0.7 -> 79.14
A20: 18 | B20: 4 | C20: 余普 | D20: 男 | E20: 8010106 | F20: 初中数学 | G20: 240411452711 | H20: 95.60 | I20: 76.98 | J20: =H20/1.2*0.3+I20*0.7 -> 77.79
A21: 19 | B21: 5 | C21: 王超 | D21: 男 | E21: 8010106 | F21: 初中数学 | G21: 240411452920 | H21: 79.60 | I21: 82.04 | J21: =H21/1.2*0.3+I21*0.7 -> 77.33
A22: 20 | B22: 6 | C22: 管元阳 | D22: 男 | E22: 8010106 | F22: 初中数学 | G22: 240411452908 | H22: 84.80 | I22: 79.9 | J22: =H22/1.2*0.3+I22*0.7 -> 77.13
A23: 21 | B23: 7 | C23: 储珊珊 | D23: 女 | E23: 8010106 | F23: 初中数学 | G23: 240411452824 | H23: 90.40 | I23: 77.54 | J23: 76.88
A24: 22 | B24: 8 | C24: 赵文琪 | D24: 女 | E24: 8010106 | F24: 初中数学 | G24: 240411452618 | H24: 81.40 | I24: 80.34 | J24: 76.59
A25: 23 | B25: 9 | C25: 吴世林 | D25: 女 | E25: 8010106 | F25: 初中数学 | G25: 240411452617 | H25: 93.70 | I25: 75.8 | J25: 76.49
A26: 24 | B26: 10 | C26: 范万乾 | D26: 男 | E26: 8010106 | F26: 初中数学 | G26: 240411452810 | H26: 87.80 | I26: 77.44 | J26: 76.16
A27: 25 | B27: 11 | C27: 刘世光 | D27: 男 | E27: 8010106 | F27: 初中数学 | G27: 240411452705 | H27: 82.80 | I27: 79 | J27: 76.00
A28: 26 | B28: 1 | C28: 操丽楠 | D28: 女 | E28: 8010107 | F28: 初中英语 | G28: 240411186314 | H28: 99.10 | I28: 88.6 | J28: =H28/1.2*0.3+I28*0.7 -> 86.80
A29: 27 | B29: 2 | C29: 王佳佳 | D29: 女 | E29: 8010107 | F29: 初中英语 | G29: 240411186029 | H29: 97.60 | I29: 85.9 | J29: =H29/1.2*0.3+I29*0.7 -> 84.53
A30: 28 | B30: 3 | C30: 张怡然 | D30: 女 | E30: 8010107 | F30: 初中英语 | G30: 240411186216 | H30: 96.10 | I30: 86.4 | J30: =H30/1.2*0.3+I30*0.7 -> 84.51
A31: 29 | B31: 4 | C31: 薛璐 | D31: 女 | E31: 8010107 | F31: 初中英语 | G31: 240411186108 | H31: 96.80 | I31: 85.8 | J31: 84.26
A32: 30 | B32: 5 | C32: 曹一鸣 | D32: 女 | E32: 8010107 | F32: 初中英语 | G32: 240411186222 | H32: 99.20 | I32: 84.5 | J32: 83.95
A33: 31 | B33: 6 | C33: 周若楠 | D33: 女 | E33: 8010107 | F33: 初中英语 | G33: 240411186322 | H33: 96.60 | I33: 85.2 | J33: 83.79
A34: 32 | B34: 7 | C34: 刘会会 | D34: 女 | E34: 8010107 | F34: 初中英语 | G34: 240411186110 | H34: 97.90 | I34: 83.3 | J34: 82.79
A35: 33 | B35: 8 | C35: 李勤 | D35: 女 | E35: 8010107 | F35: 初中英语 | G35: 240411186405 | H35: 96.30 | I35: 83.6 | J35: 82.60
A36: 34 | B36: 9 | C36: 段晨晨 | D36: 女 | E36: 8010107 | F36: 初中英语 | G36: 240411186104 | H36: 98.00 | I36: 82.8 | J36: 82.46
A37: 35 | B37: 1 | C37: 陈晨 | D37: 女 | E37: 8010108 | F37: 初中政治 | G37: 240411184612 | H37: 93.10 | I37: 82.9 | J37: =H37/1.2*0.3+I37*0.7 -> 81.31
A38: 36 | B38: 2 | C38: 周璇 | D38: 女 | E38: 8010108 | F38: 初中政治 | G38: 240411184611 | H38: 76.80 | I38: 85.8 | J38: =H38/1.2*0.3+I38*0.7 -> 79.26
A39: 37 | B39: 1 | C39: 周立业 | D39: 男 | E39: 8010109 | F39: 初中历史 | G39: 240411183113 | H39: 88.50 | I39: 87.8 | J39: =H39/1.2*0.3+I39*0.7 -> 83.59
A40: 38 | B40: 2 | C40: 刘成燕 | D40: 女 | E40: 8010109 | F40: 初中历史 | G40: 240411183124 | H40: 91.40 | I40: 84.7 | J40: =H40/1.2*0.3+I40*0.7 -> 82.14
A41: 39 | B41: 3 | C41: 娄玉香 | D41: 女 | E41: 8010109 | F41: 初中历史 | G41: 240411183127 | H41: 90.60 | I41: 83.1 | J41: =H41/1.2*0.3+I41*0.7 -> 80.82
A42: 40 | B42: 1 | C42: 王秋利 | D42: 女 | E42: 8010110 | F42: 初中地理 | G42: 240411182314 | H42: 93.00 | I42: 85.1 | J42: =H42/1.2*0.3+I42*0.7 -> 82.82
A43: 41 | B43: 2 | C43: 李梦哪 | D43: 女 | E43: 8010110 | F43: 初中地理 | G43: 240411182303 | H43: 81.00 | I43: 83.5 | J43: =H43/1.2*0.3+I43*0.7 -> 78.70
A44: 42 | B44: 1 | C44: 潘存 | D44: 男 | E44: 8010111 | F44: 初中物理 | G44: 240411181521 | H44: 88.20 | I44: 83.64 | J44: 80.60
A45: 43 | B45: 2 | C45: 刘禹 | D45: 男 | E45: 8010111 | F45: 初中物理 | G45: 240411181513 | H45: 81.70 | I45: 81.54 | J45: 77.50
A46: 44 | B46: 3 | C46: 孙雪 | D46: 女 | E46: 8010111 | F46: 初中物理 | G46: 240411181516 | H46: 68.00 | I46: 84.08 | J46: 75.86
A47: 45 | B47: 4 | C47: 朱儒燕 | D47: 女 | E47: 8010111 | F47: 初中物理 | G47: 240411181504 | H47: 70.00 | I47: 82.62 | J47: 75.33
A48: 46 | B48: 5 | C48: 白月 | D48: 女 | E48: 8010111 | F48: 初中物理 | G48: 240411181517 | H48: 80.50 | I48: 78.84 | J48: 75.31
A49: 47 | B49: 1 | C49: 李卫 | D49: 女 | E49: 8010112 | F49: 初中化学 | G49: 240411180729 | H49: 92.30 | I49: 84.04 | J49: =H49/1.2*0.3+I49*0.7 -> 81.90
A50: 48 | B50: 2 | C50: 解翔翔 | D50: 男 | E50: 8010112 | F50: 初中化学 | G50: 240411180711 | H50: 93.20 | I50: 80.22 | J50: 79.45
A51: 49 | B51: 1 | C51: 郑熟 | D51: 女 | E51: 8010113 | F51: 初中生物 | G51: 240411103813 | H51: 92.30 | I51: 82.34 | J51: 80.71
A52: 50 | B52: 2 | C52: 李玉娟 | D52: 女 | E52: 8010113 | F52: 初中生物 | G52: 240411103810 | H52: 85.50 | I52: 80.98 | J52: 78.06
A53: 51 | B53: 1 | C53: 武明月 | D53: 女 | E53: 8010114 | F53: 初中音乐 | G53: 240411103219 | H53: 77.20 | I53: 83.92 | J53: 78.04
A54: 52 | B54: 1 | C54: 赵莎莎 | D54: 女 | E54: 8010115 | F54: 初中体育 | G54: 240411100725 | H54: 84.10 | I54: 82.9 | J54: 79.06
A55: 53 | B55: 2 | C55: 王健文 | D55: 男 | E55: 8010115 | F55: 初中体育 | G55: 240411100720 | H55: 74.70 | I55: 82.1 | J55: 76.15
A56: 54 | B56: 1 | C56: 曾志豪 | D56: 男 | E56: 8010116 | F56: 初中美术 | G56: 240411102304 | H56: 95.10 | I56: 84.7 | J56: 83.07
A57: 55 | B57: 1 | C57: 凌应龙 | D57: 男 | E57: 8010117 | F57: 初中信息科技 | G57: 240411101811 | H57: 76.00 | I57: 84.08 | J57: 77.86
A58: 56 | B58: 1 | C58: 刘婷 | D58: 女 | E58: 8010018 | F58: 小学语文 | G58: 240411794010 | H58: 102 | I58: 79.06 | J58: 80.84
A59: 57 | B59: 2 | C59: 付月月 | D59: 女 | E59: 8010018 | F59: 小学语文 | G59: 240411794307 | H59: 101.5 | I59: 79.06 | J59: 80.72
A60: 58 | B60: 3 | C60: 刘书函 | D60: 女 | E60: 8010018 | F60: 小学语文 | G60: 240411794125 | H60: 99.90 | I60: 78.94 | J60: 80.23
A61: 59 | B61: 4 | C61: 李秀丽 | D61: 女 | E61: 8010018 | F61: 小学语文 | G61: 240411794429 | H61: 99.00 | I61: 79.18 | J61: 80.18
A62: 60 | B62: 5 | C62: 辛灿 | D62: 女 | E62: 8010018 | F62: 小学语文 | G62: 240411794207 | H62: 94.60 | I62: 80.42 | J62: 79.94
A63: 61 | B63: 6 | C63: 项颖 | D63: 女 | E63: 8010018 | F63: 小学语文 | G63: 240411794606 | H63: 95.50 | I63: 79.9 | J63: 79.81
A64: 62 | B64: 7 | C64: 凡丽莉 | D64: 女 | E64: 8010018 | F64: 小学语文 | G64: 240411794521 | H64: 96.70 | I64: 79.24 | J64: 79.64
A65: 63 | B65: 8 | C65: 陈璐婷 | D65: 女 | E65: 8010018 | F65: 小学语文 | G65: 240411794321 | H65: 94.10 | I65: 80.16 | J65: 79.64
A66: 64 | B66: 9 | C66: 吕向华 | D66: 女 | E66: 8010018 | F66: 小学语文 | G66: 240411793928 | H66: 95.80 | I66: 79.54 | J66: 79.63
A67: 65 | B67: 10 | C67: 邓慧文 | D67: 女 | E67: 8010018 | F67: 小学语文 | G67: 240411794211 | H67: 95.60 | I67: 79.38 | J67: 79.47
A68: 66 | B68: 11 | C68: 卓娜 | D68: 女 | E68: 8010018 | F68: 小学语文 | G68: 240411794229 | H68: 94.20 | I68: 79.82 | J68: 79.42
A69: 67 | B69: 12 | C69: 张强浩 | D69: 男 | E69: 8010018 | F69: 小学语文 | G69: 240411794020 | H69: 95.30 | I69: 79.32 | J69: 79.35
A70: 68 | B70: 13 | C70: 崔丹丹 | D70: 女 | E70: 8010018 | F70: 小学语文 | G70: 240411794007 | H70: 93.90 | I70: 79.6 | J70: 79.20
A71: 69 | B71: 1 | C71: 钱宁宁 | D71: 女 | E71: 8010019 | F71: 小学语文 | G71: 240411793815 | H71: 100 | I71: 85.38 | J71: =H71/1.2*0.3+I71*0.7 -> 84.77
A72: 70 | B72: 2 | C72: 薛淇 | D72: 女 | E72: 8010019 | F72: 小学语文 | G72: 240411793401 | H72: 97.00 | I72: 84.3 | J72: 83.26
A73: 71 | B73: 3 | C73: 罗质洁 | D73: 女 | E73: 8010019 | F73: 小学语文 | G73: 240411793613 | H73: 94.30 | I73: 84.7 | J73: 82.87
A74: 72 | B74: 4 | C74: 李前前 | D74: 女 | E74: 8010019 | F74: 小学语文 | G74: 240411793730 | H74: 99.60 | I74: 82.8 | J74: 82.86
A75: 73 | B75: 5 | C75: 张伟伟 | D75: 女 | E75: 8010019 | F75: 小学语文 | G75: 240411793322 | H75: 93.80 | I75: 84.58 | J75: 82.66
A76: 74 | B76: 6 | C76: 钮教荣 | D76: 女 | E76: 8010019 | F76: 小学语文 | G76: 240411793530 | H76: 95.70 | I76: 83.66 | J76: 82.49
A77: 75 | B77: 7 | C77: 杨慧慧 | D77: 女 | E77: 8010019 | F77: 小学语文 | G77: 240411793717 | H77: 94.20 | I77: 84.1 | J77: 82.42
A78: 76 | B78: 8 | C78: 张雅文 | D78: 女 | E78: 8010019 | F78: 小学语文 | G78: 240411793303 | H78: 90.90 | I78: 85.2 | J78: 82.37
A79: 77 | B79: 9 | C79: 周文杰 | D79: 女 | E79: 8010019 | F79: 小学语文 | G79: 240411793913 | H79: 91.30 | I79: 84.78 | J79: 82.17
A80: 78 | B80: 10 | C80: 周文雅 | D80: 女 | E80: 8010019 | F80: 小学语文 | G80: 240411793612 | H80: 94.00 | I80: 82.9 | J80: 81.53
A81: 79 | B81: 11 | C81: 徐娜娜 | D81: 女 | E81: 8010019 | F81: 小学语文 | G81: 240411793221 | H81: 94.90 | I81: 81.8 | J81: 80.99
A82: 80 | B82: 12 | C82: 孙晓梦 | D82: 女 | E82: 8010019 | F82: 小学语文 | G82: 240411793413 | H82: 94.00 | I82: 81.96 | J82: 80.87
A83: 81 | B83: 13 | C83: 秦乐 | D83: 女 | E83: 8010019 | F83: 小学语文 | G83: 240411793511 | H83: 93.10 | I83: 81.48 | J83: 80.31
A84: 82 | B84: 1 | C84: 陈瑶瑶 | D84: 女 | E84: 8010020 | F84: 小学语文 | G84: 240411792601 | H84: 95.80 | I84: 84.32 | J84: 82.97
A85: 83 | B85: 2 | C85: 李晶铭 | D85: 女 | E85: 8010020 | F85: 小学语文 | G85: 240411793124 | H85: 99.30 | I85: 82.32 | J85: 82.45
A86: 84 | B86: 3 | C86: 夏妍 | D86: 女 | E86: 8010020 | F86: 小学语文 | G86: 240411793001 | H86: 96.40 | I86: 82.72 | J86: 82.00
A87: 85 | B87: 4 | C87: 毛豆豆 | D87: 女 | E87: 8010020 | F87: 小学语文 | G87: 240411793104 | H87: 98.20 | I87: 81.74 | J87: 81.77
A88: 86 | B88: 5 | C88: 张斐鸣 | D88: 女 | E88: 8010020 | F88: 小学语文 | G88: 240411793108 | H88: 95.70 | I88: 82.44 | J88: 81.63
A89: 87 | B89: 6 | C89: 曹秒 | D89: 女 | E89: 8010020 | F89: 小学语文 | G89: 240411792425 | H89: 95.00 | I89: 82.14 | J89: 81.25
A90: 88 | B90: 7 | C90: 张锐 | D90: 女 | E90: 8010020 | F90: 小学语文 | G90: 240411792706 | H90: 93.40 | I90: 82.58 | J90: 81.16
A91: 89 | B91: 8 | C91: 赵婷春 | D91: 女 | E91: 8010020 | F91: 小学语文 | G91: 240411793005 | H91: 92.20 | I91: 82.24 | J91: 80.62
A92: 90 | B92: 9 | C92: 苗娜 | D92: 女 | E92: 8010020 | F92: 小学语文 | G92: 240411793020 | H92: 92.30 | I92: 81.8 | J92: 80.34
A93: 91 | B93: 10 | C93: 付丽 | D93: 女 | E93: 8010020 | F93: 小学语文 | G93: 240411792722 | H93: 93.10 | I93: 80.98 | J93: 79.96
A94: 92 | B94: 11 | C94: 邓雅楠 | D94: 女 | E94: 8010020 | F94: 小学语文 | G94: 240411793116 | H94: 95.10 | I94: 79.68 | J94: 79.55
A95: 93 | B95: 12 | C95: 丁凤娇 | D95: 女 | E95: 8010020 | F95: 小学语文 | G95: 240411792812 | H95: 97.80 | I95: 78.68 | J95: 79.53
A96: 94 | B96: 1 | C96: 饶月 | D96: 女 | E96: 8010021 | F96: 小学数学 | G96: 240411615901 | H96: 89.10 | I96: 81.58 | J96: 79.38
A97: 95 | B97: 2 | C97: 付加秀 | D97: 女 | E97: 8010021 | F97: 小学数学 | G97: 240411615528 | H97: 92.10 | I97: 80.16 | J97: 79.14
A98: 96 | B98: 3 | C98: 孙二伟 | D98: 女 | E98: 8010021 | F98: 小学数学 | G98: 240411615626 | H98: 88.90 | I98: 80.64 | J98: 78.67
A99: 97 | B99: 4 | C99: 李芬 | D99: 女 | E99: 8010021 | F99: 小学数学 | G99: 240411615718 | H99: 77.20 | I99: 80.68 | J99: 75.78
A100: 98 | B100: 5 | C100: 杨皖霞 | D100: 女 | E100: 8010021 | F100: 小学数学 | G100: 240411615814 | H100: 76.60 | I100: 79.9 | J100: 75.08
A101: 99 | B101: 6 | C101: 张梦茹 | D101: 女 | E101: 8010021 | F101: 小学数学 | G101: 240411615430 | H101: 77.10 | I101: 79.66 | J101: 75.04
A102: 100 | B102: 7 | C102: 谢梦婷 | D102: 女 | E102: 8010021 | F102: 小学数学 | G102: 240411615710 | H102: 76.00 | I102: 79.98 | J102: 74.99
A103: 101 | B103: 8 | C103: 徐瑞 | D103: 女 | E103: 8010021 | F103: 小学数学 | G103: 240411615429 | H103: 71.40 | I103: 81.58 | J103: 74.96
A104: 102 | B104: 9 | C104: 房婷婷 | D104: 女 | E104: 8010021 | F104: 小学数学 | G104: 240411615919 | H104: 77.80 | I104: 78.6 | J104: 74.47
A105: 103 | B105: 10 | C105: 李梦 | D105: 女 | E105: 8010021 | F105: 小学数学 | G105: 240411615516 | H105: 71.00 | I105: 79.58 | J105: 73.46
A106: 104 | B106: 1 | C106: 陈丽丽 | D106: 女 | E106: 8010022 | F106: 小学数学 | G106: 240411615313 | H106: 81.80 | I106: 83.86 | J106: =H106/1.2*0.3+I106*0.7 -> 79.15
A107: 105 | B107: 2 | C107: 杨朵 | D107: 女 | E107: 8010022 | F107: 小学数学 | G107: 240411615026 | H107: 82.50 | I107: 83.36 | J107: 78.98
A108: 106 | B108: 3 | C108: 鲍云云 | D108: 女 | E108: 8010022 | F108: 小学数学 | G108: 240411615006 | H108: 79.00 | I108: 84.28 | J108: 78.75
A109: 107 | B109: 4 | C109: 尚倩楠 | D109: 女 | E109: 8010022 | F109: 小学数学 | G109: 240411615117 | H109: 88.30 | I109: 79.96 | J109: 78.05
A110: 108 | B110: 5 | C110: 蒋玉利 | D110: 女 | E110: 8010022 | F110: 小学数学 | G110: 240411615402 | H110: 82.90 | I110: 81.8 | J110: 77.99
A111: 109 | B111: 6 | C111: 黄海艳 | D111: 女 | E111: 8010022 | F111: 小学数学 | G111: 240411615027 | H111: 74.20 | I111: 84.7 | J111: 77.84
A112: 110 | B112: 7 | C112: 董秀英 | D112: 女 | E112: 8010022 | F112: 小学数学 | G112: 240411615130 | H112: 75.00 | I112: 84.4 | J112: 77.83
A113: 111 | B113: 8 | C113: 肖由雪 | D113: 女 | E113: 8010022 | F113: 小学数学 | G113: 240411615127 | H113: 81.30 | I113: 81.02 | J113: 77.04
A114: 112 | B114: 9 | C114: 鲁婷婷 | D114: 女 | E114: 8010022 | F114: 小学数学 | G114: 240411615107 | H114: 82.40 | I114: 79.8 | J114: 76.46
A115: 113 | B115: 1 | C115: 徐广婷 | D115: 女 | E115: 8010023 | F115: 小学英语 | G115: 240411782929 | H115: 91.40 | I115: 84.76 | J115: 82.18
A116: 114 | B116: 2 | C116: 陈冉 | D116: 女 | E116: 8010023 | F116: 小学英语 | G116: 240411783106 | H116: 87.95 | I116: 84.94 | J116: 81.45
A117: 115 | B117: 3 | C117: 杨晓茹 | D117: 女 | E117: 8010023 | F117: 小学英语 | G117: 240411783102 | H117: 88.85 | I117: 83.6 | J117: 80.73
A118: 116 | B118: 4 | C118: 赵梦婷 | D118: 女 | E118: 8010023 | F118: 小学英语 | G118: 240411782913 | H118: 91.35 | I118: 82.22 | J118: 80.39
A119: 117 | B119: 5 | C119: 李倩 | D119: 女 | E119: 8010023 | F119: 小学英语 | G119: 240411782903 | H119: 92.90 | I119: 81.4 | J119: 80.21
A120: 118 | B120: 6 | C120: 袁萍 | D120: 女 | E120: 8010023 | F120: 小学英语 | G120: 240411783011 | H120: 88.45 | I120: 82.74 | J120: 80.03
A121: 119 | B121: 7 | C121: 金允梦 | D121: 女 | E121: 8010023 | F121: 小学英语 | G121: 240411783029 | H121: 92.30 | I121: 80.98 | J121: 79.76
A122: 120 | B122: 8 | C122: 沈毛毛 | D122: 女 | E122: 8010023 | F122: 小学英语 | G122: 240411783027 | H122: 90.75 | I122: 80.56 | J122: 79.08
A123: 121 | B123: 1 | C123: 江昊 | D123: 女 | E123: 8010024 | F123: 小学音乐 | G123: 240411780815 | H123: 91.90 | I123: 84.06 | J123: 81.82
A124: 122 | B124: 2 | C124: 徐小娜 | D124: 女 | E124: 8010024 | F124: 小学音乐 | G124: 240411780904 | H124: 80.10 | I124: 86.56 | J124: 80.62
A125: 123 | B125: 3 | C125: 钱晓雨 | D125: 女 | E125: 8010024 | F125: 小学音乐 | G125: 240411780828 | H125: 88.50 | I125: 82.24 | J125: 79.69
A126: 124 | B126: 1 | C126: 周旭 | D126: 男 | E126: 8010025 | F126: 小学体育 | G126: 240411580812 | H126: 88.70 | I126: 83.4 | J126: 80.56
A127: 125 | B127: 2 | C127: 王艳 | D127: 女 | E127: 8010025 | F127: 小学体育 | G127: 240411580918 | H127: 88.60 | I127: 83.16 | J127: 80.36
A128: 126 | B128: 3 | C128: 陈韩伟 | D128: 男 | E128: 8010025 | F128: 小学体育 | G128: 240411580830 | H128: 82.70 | I128: 84.38 | J128: 79.74
A129: 127 | B129: 1 | C129: 车文静 | D129: 女 | E129: 8010026 | F129: 小学美术 | G129: 240411610919 | H129: 86.90 | I129: 85.7 | J129: 81.72
A130: 128 | B130: 2 | C130: 叶俊 | D130: 女 | E130: 8010026 | F130: 小学美术 | G130: 240411610907 | H130: 89.70 | I130: 84.26 | J130: 81.41
A131: 129 | B131: 3 | C131: 尚缘缘 | D131: 女 | E131: 8010026 | F131: 小学美术 | G131: 240411610820 | H131: 86.80 | I131: 84.7 | J131: 80.99
A132: 130 | B132: 1 | C132: 马胜男 | D132: 女 | E132: 8010027 | F132: 小学特殊教育 | G132: 240411773814 | H132: 96.40 | I132: 84.66 | J132: 83.36
